[Event "Titled Tuesday Blitz October 25 Late 2022"]
[White "Averjanov, Alexey"]
[Black "Barria Zuniga, Daniel"]
[WhiteFideId "14109867"]
[BlackFideId "3400816"]
[WhiteElo "2676"]
[BlackElo "2414"]
[Result "1/2-1/2"]
[Round "07"]
[TimeControl "180+1"]
[Date "2022.10.26"]
[WhiteClock "0:00:53"]
[BlackClock "0:00:56"]

1. d4 {[%clk 0:02:51]}  g6 {[%clk 0:02:51]} 2. Nf3 {[%clk 0:02:48]}  Bg7 {[%clk 0:02:51]} 3. c4 {[%clk 0:02:48]}  c5 {[%clk 0:02:51]} 4. e3 {[%clk 0:02:47]}  Nf6 {[%clk 0:02:51]} 5. Nc3 {[%clk 0:02:47]}  O-O {[%clk 0:02:52]} 6. Be2 {[%clk 0:02:47]}  d5 {[%clk 0:02:47]} 7. cxd5 {[%clk 0:02:44]}  Nxd5 {[%clk 0:02:46]} 8. O-O {[%clk 0:02:43]}  Nc6 {[%clk 0:02:46]} 9. Qb3 {[%clk 0:02:26]}  e6 {[%clk 0:02:20]} 10. Nxd5 {[%clk 0:02:22]}  exd5 {[%clk 0:02:18]} 11. dxc5 {[%clk 0:02:22]}  Qa5 {[%clk 0:02:08]} 12. Bd2 {[%clk 0:02:16]}  Qxc5 {[%clk 0:02:05]} 13. Rac1 {[%clk 0:02:16]}  Qd6 {[%clk 0:02:04]} 14. Bc3 {[%clk 0:02:13]}  Bxc3 {[%clk 0:01:42]} 15. Qxc3 {[%clk 0:02:14]}  Be6 {[%clk 0:01:41]} 16. Rfd1 {[%clk 0:02:13]}  Rfc8 {[%clk 0:01:40]} 17. Qf6 {[%clk 0:02:12]}  Qd8 {[%clk 0:01:38]} 18. Qxd8+ {[%clk 0:02:11]}  Rxd8 {[%clk 0:01:39]} 19. Nd4 {[%clk 0:02:11]}  Rac8 {[%clk 0:01:37]} 20. Nxc6 {[%clk 0:01:55]}  Rxc6 {[%clk 0:01:38]} 21. Bb5 {[%clk 0:01:46]}  Rb6 {[%clk 0:01:34]} 22. a4 {[%clk 0:01:25]}  a6 {[%clk 0:01:33]} 23. Bd3 {[%clk 0:01:21]}  Rxb2 {[%clk 0:01:33]} 24. Rb1 {[%clk 0:01:19]}  Rxb1 {[%clk 0:01:29]} 25. Rxb1 {[%clk 0:01:20]}  Rd7 {[%clk 0:01:28]} 26. Kf1 {[%clk 0:01:17]}  Kf8 {[%clk 0:01:27]} 27. Ke2 {[%clk 0:01:16]}  Ke7 {[%clk 0:01:27]} 28. Kd2 {[%clk 0:01:16]}  Kd6 {[%clk 0:01:27]} 29. Kc3 {[%clk 0:01:12]}  Kc5 {[%clk 0:01:26]} 30. a5 {[%clk 0:01:12]}  Rc7 {[%clk 0:01:14]} 31. Rb4 {[%clk 0:00:58]}  Bc8 {[%clk 0:01:03]} 32. f4 {[%clk 0:00:56]}  Kd6+ {[%clk 0:01:02]} 33. Kd4 {[%clk 0:00:55]}  Rc5 {[%clk 0:00:57]} 34. Rb6+ {[%clk 0:00:54]}  Rc6 {[%clk 0:00:57]} 35. Rb4 {[%clk 0:00:53]}  Rc5 {[%clk 0:00:55]} 36. Rb6+ {[%clk 0:00:53]}  Rc6 {[%clk 0:00:56]} 37. Rb4 {[%clk 0:00:53]}  Rc5 {[%clk 0:00:56]} 1/2-1/2


[Site "https://www.chess.com"]

[Event "Titled Tuesday Blitz October 25 Late 2022"]
[White "Ballester Llagaria, Luis Eduardo"]
[Black "Baskakov, Egor"]
[WhiteFideId "2297620"]
[BlackFideId "24197866"]
[WhiteElo "2344"]
[BlackElo "2211"]
[Result "0-1"]
[Round "07"]
[TimeControl "180+1"]
[Date "2022.10.26"]
[WhiteClock "0:00:11"]
[BlackClock "0:01:29"]

1. e4 {[%clk 0:02:24]}  c5 {[%clk 0:02:59]} 2. Nc3 {[%clk 0:02:23]}  Nc6 {[%clk 0:02:59]} 3. Bb5 {[%clk 0:02:23]}  g6 {[%clk 0:02:59]} 4. Bxc6 {[%clk 0:02:23]}  dxc6 {[%clk 0:03:00]} 5. f4 {[%clk 0:02:23]}  Bg7 {[%clk 0:02:59]} 6. Nf3 {[%clk 0:02:24]}  Bg4 {[%clk 0:03:00]} 7. O-O {[%clk 0:02:23]}  e5 {[%clk 0:03:00]} 8. d3 {[%clk 0:02:21]}  exf4 {[%clk 0:03:00]} 9. Bxf4 {[%clk 0:02:22]}  h6 {[%clk 0:03:00]} 10. h3 {[%clk 0:02:19]}  Be6 {[%clk 0:02:57]} 11. Qd2 {[%clk 0:02:03]}  Ne7 {[%clk 0:02:56]} 12. Kh1 {[%clk 0:01:54]}  g5 {[%clk 0:02:53]} 13. Be5 {[%clk 0:01:53]}  f6 {[%clk 0:02:53]} 14. Bh2 {[%clk 0:01:48]}  O-O {[%clk 0:02:52]} 15. Ne2 {[%clk 0:01:40]}  Ng6 {[%clk 0:02:51]} 16. Qe3 {[%clk 0:01:35]}  b6 {[%clk 0:02:51]} 17. g4 {[%clk 0:01:33]}  Qd7 {[%clk 0:02:50]} 18. Ng3 {[%clk 0:01:31]}  Rae8 {[%clk 0:02:50]} 19. Rae1 {[%clk 0:01:30]}  Nf4 {[%clk 0:02:47]} 20. Nf5 {[%clk 0:01:17]}  Nxh3 {[%clk 0:02:44]} 21. Kg2 {[%clk 0:01:16]}  h5 {[%clk 0:02:32]} 22. Nxg7 {[%clk 0:00:42]}  Qxg7 {[%clk 0:02:16]} 23. Kxh3 {[%clk 0:00:42]}  hxg4+ {[%clk 0:02:15]} 24. Kg2 {[%clk 0:00:43]}  gxf3+ {[%clk 0:02:15]} 25. Qxf3 {[%clk 0:00:44]}  f5 {[%clk 0:02:09]} 26. exf5 {[%clk 0:00:42]}  Bd5 {[%clk 0:02:09]} 27. Re4 {[%clk 0:00:34]}  Bxe4 {[%clk 0:02:04]} 28. dxe4 {[%clk 0:00:34]}  Qxb2 {[%clk 0:02:03]} 29. e5 {[%clk 0:00:28]}  Rxe5 {[%clk 0:02:01]} 30. Bxe5 {[%clk 0:00:22]}  Qxe5 {[%clk 0:02:02]} 31. f6 {[%clk 0:00:21]}  Qe6 {[%clk 0:01:54]} 32. Qh5 {[%clk 0:00:18]}  Rxf6 {[%clk 0:01:41]} 33. Rxf6 {[%clk 0:00:18]}  Qxf6 {[%clk 0:01:41]} 34. Qe8+ {[%clk 0:00:19]}  Kg7 {[%clk 0:01:41]} 35. Qd7+ {[%clk 0:00:17]}  Qf7 {[%clk 0:01:39]} 36. Qxc6 {[%clk 0:00:18]}  Qxa2 {[%clk 0:01:39]} 37. Qc7+ {[%clk 0:00:16]}  Qf7 {[%clk 0:01:39]} 38. Qe5+ {[%clk 0:00:16]}  Kg6 {[%clk 0:01:39]} 39. Qe4+ {[%clk 0:00:16]}  Qf5 {[%clk 0:01:38]} 40. Qc6+ {[%clk 0:00:17]}  Kg7 {[%clk 0:01:32]} 41. c4 {[%clk 0:00:17]}  Qg4+ {[%clk 0:01:31]} 42. Kh2 {[%clk 0:00:16]}  Qf4+ {[%clk 0:01:30]} 43. Kh3 {[%clk 0:00:14]}  Qh4+ {[%clk 0:01:29]} 44. Kg2 {[%clk 0:00:14]}  Qxc4 {[%clk 0:01:30]} 45. Qd7+ {[%clk 0:00:13]}  Qf7 {[%clk 0:01:31]} 46. Qc6 {[%clk 0:00:13]}  g4 {[%clk 0:01:30]} 47. Kh2 {[%clk 0:00:12]}  Qf2+ {[%clk 0:01:29]} 48. Kh1 {[%clk 0:00:11]}  Qf3+ {[%clk 0:01:29]} 0-1


[Site "https://www.chess.com"]

[Event "Titled Tuesday Blitz October 25 Late 2022"]
[White "Bernat, David"]
[Black "Osmak, Yuliia"]
[WhiteFideId "2099225"]
[BlackFideId "14101602"]
[WhiteElo "2321"]
[BlackElo "2328"]
[Result "1-0"]
[Round "07"]
[TimeControl "180+1"]
[Date "2022.10.26"]
[WhiteClock "0:00:15"]
[BlackClock "0:00:01"]

1. c4 {[%clk 0:03:00]}  c5 {[%clk 0:02:53]} 2. Nc3 {[%clk 0:03:00]}  Nc6 {[%clk 0:02:53]} 3. g3 {[%clk 0:03:01]}  g6 {[%clk 0:02:52]} 4. Bg2 {[%clk 0:03:01]}  Bg7 {[%clk 0:02:53]} 5. e4 {[%clk 0:03:02]}  d6 {[%clk 0:02:51]} 6. Nge2 {[%clk 0:03:03]}  Nf6 {[%clk 0:02:50]} 7. O-O {[%clk 0:03:03]}  O-O {[%clk 0:02:50]} 8. d3 {[%clk 0:03:03]}  Ne8 {[%clk 0:02:48]} 9. Be3 {[%clk 0:03:04]}  Nc7 {[%clk 0:02:45]} 10. d4 {[%clk 0:03:04]}  cxd4 {[%clk 0:02:45]} 11. Nxd4 {[%clk 0:03:05]}  Ne6 {[%clk 0:02:43]} 12. Nde2 {[%clk 0:03:04]}  Nc5 {[%clk 0:02:37]} 13. Rb1 {[%clk 0:02:49]}  a5 {[%clk 0:02:26]} 14. a3 {[%clk 0:02:46]}  a4 {[%clk 0:02:21]} 15. Qc2 {[%clk 0:02:26]}  f5 {[%clk 0:02:12]} 16. Rfd1 {[%clk 0:02:22]}  Nxe4 {[%clk 0:01:56]} 17. Nxe4 {[%clk 0:02:21]}  fxe4 {[%clk 0:01:57]} 18. c5 {[%clk 0:02:04]}  Bg4 {[%clk 0:01:19]} 19. Bxe4 {[%clk 0:01:58]}  Ne5 {[%clk 0:01:15]} 20. Bxb7 {[%clk 0:01:50]}  Nf3+ {[%clk 0:01:11]} 21. Kg2 {[%clk 0:01:47]}  Rb8 {[%clk 0:01:03]} 22. c6 {[%clk 0:01:34]}  Rxb7 {[%clk 0:01:03]} 23. Qc4+ {[%clk 0:01:10]}  Kh8 {[%clk 0:00:56]} 24. Qxg4 {[%clk 0:01:09]}  Rb5 {[%clk 0:00:22]} 25. Nd4 {[%clk 0:00:54]}  Bxd4 {[%clk 0:00:15]} 26. Bxd4+ {[%clk 0:00:55]}  e5 {[%clk 0:00:15]} 27. Bc3 {[%clk 0:00:47]}  Qc7 {[%clk 0:00:15]} 28. Qd7 {[%clk 0:00:43]}  Qb6 {[%clk 0:00:12]} 29. Qxd6 {[%clk 0:00:19]}  Nh4+ {[%clk 0:00:11]} 30. Kh3 {[%clk 0:00:16]}  Qxf2 {[%clk 0:00:07]} 31. Bxe5+ {[%clk 0:00:16]}  Rxe5 {[%clk 0:00:03]} 32. Qxe5+ {[%clk 0:00:17]}  Kg8 {[%clk 0:00:03]} 33. Qd5+ {[%clk 0:00:14]}  Kh8 {[%clk 0:00:03]} 34. Qd4+ {[%clk 0:00:14]}  Qxd4 {[%clk 0:00:01]} 35. Rxd4 {[%clk 0:00:15]} 1-0


[Site "https://www.chess.com"]

[Event "Titled Tuesday Blitz October 25 Late 2022"]
[White "Bilan, Danila"]
[Black "Aguilar, Juan"]
[WhiteFideId "24161918"]
[BlackFideId "3800091"]
[WhiteElo "2203"]
[BlackElo "2427"]
[Result "1-0"]
[Round "07"]
[TimeControl "180+1"]
[Date "2022.10.26"]
[WhiteClock "0:00:05"]
[BlackClock "0:00:01"]

1. d4 {[%clk 0:03:00]}  Nf6 {[%clk 0:02:59]} 2. Nf3 {[%clk 0:03:01]}  g6 {[%clk 0:02:57]} 3. Bg5 {[%clk 0:03:00]}  Bg7 {[%clk 0:02:57]} 4. Nbd2 {[%clk 0:03:00]}  O-O {[%clk 0:02:58]} 5. e4 {[%clk 0:03:00]}  d5 {[%clk 0:02:58]} 6. Bd3 {[%clk 0:02:39]}  c5 {[%clk 0:02:44]} 7. e5 {[%clk 0:02:30]}  Nfd7 {[%clk 0:02:24]} 8. c3 {[%clk 0:02:29]}  f6 {[%clk 0:02:21]} 9. exf6 {[%clk 0:02:20]}  exf6 {[%clk 0:02:20]} 10. Be3 {[%clk 0:02:16]}  Nc6 {[%clk 0:02:04]} 11. O-O {[%clk 0:02:07]}  c4 {[%clk 0:01:58]} 12. Bc2 {[%clk 0:02:01]}  b5 {[%clk 0:01:58]} 13. Re1 {[%clk 0:01:49]}  Nb6 {[%clk 0:01:54]} 14. Bf4 {[%clk 0:01:39]}  a5 {[%clk 0:01:32]} 15. Nf1 {[%clk 0:01:34]}  b4 {[%clk 0:01:28]} 16. h4 {[%clk 0:01:22]}  a4 {[%clk 0:01:16]} 17. a3 {[%clk 0:01:11]}  b3 {[%clk 0:01:11]} 18. Bb1 {[%clk 0:01:11]}  Re8 {[%clk 0:01:08]} 19. h5 {[%clk 0:01:06]}  Rxe1 {[%clk 0:01:03]} 20. Nxe1 {[%clk 0:01:04]}  Ne7 {[%clk 0:00:51]} 21. Ng3 {[%clk 0:00:55]}  g5 {[%clk 0:00:40]} 22. Bd2 {[%clk 0:00:51]}  Bd7 {[%clk 0:00:38]} 23. Nf3 {[%clk 0:00:45]}  Bg4 {[%clk 0:00:35]} 24. Qe1 {[%clk 0:00:44]}  Qd7 {[%clk 0:00:33]} 25. Nh2 {[%clk 0:00:40]}  Be6 {[%clk 0:00:31]} 26. Qe2 {[%clk 0:00:34]}  Re8 {[%clk 0:00:30]} 27. h6 {[%clk 0:00:35]}  Bh8 {[%clk 0:00:25]} 28. Qf3 {[%clk 0:00:31]}  Nbc8 {[%clk 0:00:16]} 29. Nh5 {[%clk 0:00:29]}  Rf8 {[%clk 0:00:16]} 30. g4 {[%clk 0:00:22]}  Nd6 {[%clk 0:00:15]} 31. Ng3 {[%clk 0:00:16]}  Ng6 {[%clk 0:00:12]} 32. Nf5 {[%clk 0:00:14]}  Bxf5 {[%clk 0:00:11]} 33. Bxf5 {[%clk 0:00:14]}  Nxf5 {[%clk 0:00:11]} 34. gxf5 {[%clk 0:00:09]}  Ne7 {[%clk 0:00:11]} 35. Re1 {[%clk 0:00:06]}  Nxf5 {[%clk 0:00:12]} 36. Qg4 {[%clk 0:00:07]}  Qc8 {[%clk 0:00:10]} 37. Qf3 {[%clk 0:00:05]}  Rd8 {[%clk 0:00:08]} 38. Ng4 {[%clk 0:00:05]}  Nd6 {[%clk 0:00:01]} 39. Re7 {[%clk 0:00:05]} 1-0


[Site "https://www.chess.com"]

[Event "Titled Tuesday Blitz October 25 Late 2022"]
[White "Bogaudinov, Rushan"]
[Black "Abdyzhapar, Asylbek"]
[WhiteFideId "4129288"]
[BlackFideId "13800337"]
[WhiteElo "1945"]
[BlackElo "2323"]
[Result "0-1"]
[Round "07"]
[TimeControl "180+1"]
[Date "2022.10.26"]
[WhiteClock "0:00:10"]
[BlackClock "0:00:22"]

1. e4 {[%clk 0:02:58]}  c6 {[%clk 0:03:00]} 2. d4 {[%clk 0:02:57]}  d5 {[%clk 0:03:00]} 3. e5 {[%clk 0:02:58]}  Bf5 {[%clk 0:02:59]} 4. c4 {[%clk 0:02:58]}  e6 {[%clk 0:02:59]} 5. Nc3 {[%clk 0:02:58]}  Ne7 {[%clk 0:02:58]} 6. a3 {[%clk 0:02:57]}  dxc4 {[%clk 0:02:58]} 7. Bxc4 {[%clk 0:02:57]}  Nd5 {[%clk 0:02:58]} 8. Nge2 {[%clk 0:02:56]}  Be7 {[%clk 0:02:55]} 9. Ng3 {[%clk 0:02:55]}  Bg6 {[%clk 0:02:55]} 10. O-O {[%clk 0:02:55]}  O-O {[%clk 0:02:54]} 11. f4 {[%clk 0:02:53]}  Re8 {[%clk 0:02:46]} 12. Qf3 {[%clk 0:02:50]}  Nb6 {[%clk 0:02:37]} 13. Bb3 {[%clk 0:02:47]}  Qxd4+ {[%clk 0:02:35]} 14. Be3 {[%clk 0:02:47]}  Qd7 {[%clk 0:02:32]} 15. Rad1 {[%clk 0:02:46]}  Qc8 {[%clk 0:02:30]} 16. f5 {[%clk 0:02:29]}  exf5 {[%clk 0:02:30]} 17. Nxf5 {[%clk 0:02:20]}  Bf8 {[%clk 0:02:27]} 18. Nd6 {[%clk 0:02:12]}  Bxd6 {[%clk 0:02:27]} 19. exd6 {[%clk 0:02:13]}  Qd7 {[%clk 0:02:21]} 20. h4 {[%clk 0:02:03]}  h5 {[%clk 0:02:19]} 21. Qg3 {[%clk 0:01:35]}  Kh7 {[%clk 0:02:15]} 22. Bd4 {[%clk 0:01:28]}  Rg8 {[%clk 0:02:00]} 23. Ne2 {[%clk 0:01:22]}  Nd5 {[%clk 0:01:59]} 24. Qe5 {[%clk 0:01:09]}  Qg4 {[%clk 0:01:52]} 25. Bxd5 {[%clk 0:00:58]}  cxd5 {[%clk 0:01:52]} 26. Nf4 {[%clk 0:00:52]}  Nc6 {[%clk 0:01:41]} 27. Qxd5 {[%clk 0:00:47]}  Rad8 {[%clk 0:01:27]} 28. Nxg6 {[%clk 0:00:41]}  fxg6 {[%clk 0:01:27]} 29. Bc3 {[%clk 0:00:38]}  Rd7 {[%clk 0:01:21]} 30. b4 {[%clk 0:00:26]}  a6 {[%clk 0:01:20]} 31. Bd4 {[%clk 0:00:18]}  Qxh4 {[%clk 0:01:13]} 32. Bc5 {[%clk 0:00:18]}  Qg4 {[%clk 0:01:08]} 33. Rde1 {[%clk 0:00:18]}  Rgd8 {[%clk 0:00:57]} 34. Re4 {[%clk 0:00:17]}  Rxd6 {[%clk 0:00:37]} 35. Bxd6 {[%clk 0:00:17]}  Rxd6 {[%clk 0:00:37]} 36. Rxg4 {[%clk 0:00:14]}  Rxd5 {[%clk 0:00:37]} 37. Rg3 {[%clk 0:00:13]}  Ne7 {[%clk 0:00:32]} 38. Rc3 {[%clk 0:00:11]}  Nf5 {[%clk 0:00:30]} 39. Rc7 {[%clk 0:00:10]}  b5 {[%clk 0:00:30]} 40. Rc6 {[%clk 0:00:10]}  h4 {[%clk 0:00:27]} 41. Rxa6 {[%clk 0:00:09]}  Kh6 {[%clk 0:00:27]} 42. Rf3 {[%clk 0:00:09]}  Kg5 {[%clk 0:00:26]} 43. Ra5 {[%clk 0:00:09]}  Kg4 {[%clk 0:00:25]} 44. a4 {[%clk 0:00:09]}  Rd1+ {[%clk 0:00:25]} 45. Kf2 {[%clk 0:00:09]}  Rd2+ {[%clk 0:00:21]} 46. Ke1 {[%clk 0:00:07]}  Rxg2 {[%clk 0:00:21]} 47. Rxf5 {[%clk 0:00:06]}  gxf5 {[%clk 0:00:21]} 48. Rxb5 {[%clk 0:00:06]}  h3 {[%clk 0:00:20]} 49. Rb7 {[%clk 0:00:06]}  g5 {[%clk 0:00:20]} 50. Rh7 {[%clk 0:00:06]}  h2 {[%clk 0:00:20]} 51. Kf1 {[%clk 0:00:06]}  Rg1+ {[%clk 0:00:20]} 52. Kf2 {[%clk 0:00:06]}  h1=Q {[%clk 0:00:20]} 53. Rxh1 {[%clk 0:00:07]}  Rxh1 {[%clk 0:00:20]} 54. a5 {[%clk 0:00:08]}  Ra1 {[%clk 0:00:20]} 55. Ke3 {[%clk 0:00:09]}  f4+ {[%clk 0:00:20]} 56. Kd3 {[%clk 0:00:09]}  f3 {[%clk 0:00:21]} 57. Kc3 {[%clk 0:00:09]}  f2 {[%clk 0:00:21]} 58. Kb2 {[%clk 0:00:10]}  f1=Q {[%clk 0:00:22]} 0-1


[Site "https://www.chess.com"]

[Event "Titled Tuesday Blitz October 25 Late 2022"]
[White "Boruchovsky, Avital"]
[Black "Caruana, Fabiano"]
[WhiteFideId "2800055"]
[BlackFideId "2020009"]
[WhiteElo "2466"]
[BlackElo "2847"]
[Result "0-1"]
[Round "07"]
[TimeControl "180+1"]
[Date "2022.10.26"]
[WhiteClock "0:00:10"]
[BlackClock "0:00:11"]

1. e4 {[%clk 0:03:00]}  e5 {[%clk 0:02:59]} 2. Nf3 {[%clk 0:03:00]}  Nc6 {[%clk 0:02:59]} 3. Bb5 {[%clk 0:03:00]}  a6 {[%clk 0:02:59]} 4. Ba4 {[%clk 0:03:00]}  Nge7 {[%clk 0:03:00]} 5. c3 {[%clk 0:02:59]}  d6 {[%clk 0:02:57]} 6. O-O {[%clk 0:02:58]}  Bd7 {[%clk 0:02:55]} 7. d4 {[%clk 0:02:57]}  Ng6 {[%clk 0:02:55]} 8. Be3 {[%clk 0:02:51]}  Be7 {[%clk 0:02:54]} 9. Nbd2 {[%clk 0:02:50]}  O-O {[%clk 0:02:54]} 10. h3 {[%clk 0:02:45]}  Bf6 {[%clk 0:02:52]} 11. Re1 {[%clk 0:02:42]}  b5 {[%clk 0:02:49]} 12. Bc2 {[%clk 0:02:41]}  h6 {[%clk 0:02:49]} 13. Nf1 {[%clk 0:02:40]}  Nh4 {[%clk 0:02:37]} 14. Nxh4 {[%clk 0:02:21]}  Bxh4 {[%clk 0:02:38]} 15. a4 {[%clk 0:02:20]}  Qf6 {[%clk 0:02:19]} 16. Bb3 {[%clk 0:02:18]}  Bg5 {[%clk 0:02:15]} 17. Bxg5 {[%clk 0:02:07]}  hxg5 {[%clk 0:02:11]} 18. Ne3 {[%clk 0:01:50]}  Ne7 {[%clk 0:02:07]} 19. axb5 {[%clk 0:01:39]}  axb5 {[%clk 0:02:04]} 20. Qd2 {[%clk 0:01:38]}  Be6 {[%clk 0:01:51]} 21. Bc2 {[%clk 0:01:27]}  c6 {[%clk 0:01:44]} 22. d5 {[%clk 0:01:22]}  cxd5 {[%clk 0:01:42]} 23. exd5 {[%clk 0:01:22]}  Bd7 {[%clk 0:01:42]} 24. c4 {[%clk 0:01:12]}  bxc4 {[%clk 0:01:34]} 25. Nxc4 {[%clk 0:01:13]}  Bb5 {[%clk 0:01:27]} 26. Ne3 {[%clk 0:01:06]}  g6 {[%clk 0:01:19]} 27. Rxa8 {[%clk 0:00:55]}  Rxa8 {[%clk 0:01:19]} 28. Qb4 {[%clk 0:00:55]}  Bd7 {[%clk 0:00:57]} 29. Qb7 {[%clk 0:00:51]}  Rd8 {[%clk 0:00:57]} 30. b4 {[%clk 0:00:47]}  Bf5 {[%clk 0:00:52]} 31. Bxf5 {[%clk 0:00:34]}  Nxf5 {[%clk 0:00:51]} 32. b5 {[%clk 0:00:29]}  Qe7 {[%clk 0:00:45]} 33. Qa6 {[%clk 0:00:21]}  Nd4 {[%clk 0:00:39]} 34. b6 {[%clk 0:00:21]}  Rb8 {[%clk 0:00:38]} 35. Rb1 {[%clk 0:00:21]}  Kg7 {[%clk 0:00:29]} 36. b7 {[%clk 0:00:20]}  Qc7 {[%clk 0:00:28]} 37. Nc4 {[%clk 0:00:20]}  Ne2+ {[%clk 0:00:27]} 38. Kf1 {[%clk 0:00:20]}  Nc3 {[%clk 0:00:28]} 39. Rb3 {[%clk 0:00:19]}  Ne4 {[%clk 0:00:27]} 40. Rb4 {[%clk 0:00:17]}  Qc5 {[%clk 0:00:23]} 41. Rb2 {[%clk 0:00:17]}  Qd4 {[%clk 0:00:22]} 42. Kg1 {[%clk 0:00:16]}  Qxd5 {[%clk 0:00:18]} 43. Ne3 {[%clk 0:00:15]}  Qd4 {[%clk 0:00:14]} 44. Qb6 {[%clk 0:00:11]}  Nc5 {[%clk 0:00:13]} 45. Kh2 {[%clk 0:00:09]}  Rxb7 {[%clk 0:00:12]} 46. Qxb7 {[%clk 0:00:07]}  Nxb7 {[%clk 0:00:13]} 47. Rxb7 {[%clk 0:00:07]}  d5 {[%clk 0:00:12]} 48. Ng4 {[%clk 0:00:06]}  Qf4+ {[%clk 0:00:11]} 49. g3 {[%clk 0:00:07]}  Qf5 {[%clk 0:00:10]} 50. Re7 {[%clk 0:00:07]}  e4 {[%clk 0:00:09]} 51. Kg1 {[%clk 0:00:06]}  d4 {[%clk 0:00:09]} 52. Ne5 {[%clk 0:00:06]}  d3 {[%clk 0:00:08]} 53. g4 {[%clk 0:00:05]}  Qf6 {[%clk 0:00:08]} 54. Rxf7+ {[%clk 0:00:06]}  Qxf7 {[%clk 0:00:09]} 55. Nxf7 {[%clk 0:00:07]}  Kxf7 {[%clk 0:00:10]} 56. Kf1 {[%clk 0:00:07]}  Kf6 {[%clk 0:00:10]} 57. Ke1 {[%clk 0:00:08]}  Ke5 {[%clk 0:00:10]} 58. Kd2 {[%clk 0:00:09]}  Kf4 {[%clk 0:00:11]} 59. Kc3 {[%clk 0:00:10]}  Kf3 {[%clk 0:00:11]} 60. Kd4 {[%clk 0:00:10]}  d2 {[%clk 0:00:11]} 0-1


[Site "https://www.chess.com"]

[Event "Titled Tuesday Blitz October 25 Late 2022"]
[White "Boskovic, Drasko"]
[Black "Baglan, Esat"]
[WhiteFideId "927368"]
[BlackFideId "6309216"]
[WhiteElo "2388"]
[BlackElo "2231"]
[Result "1-0"]
[Round "07"]
[TimeControl "180+1"]
[Date "2022.10.26"]
[WhiteClock "0:00:09"]
[BlackClock "0:00:17"]

1. e4 {[%clk 0:02:58]}  c5 {[%clk 0:02:58]} 2. Nf3 {[%clk 0:02:58]}  d6 {[%clk 0:02:56]} 3. Bb5+ {[%clk 0:02:57]}  Nd7 {[%clk 0:02:56]} 4. O-O {[%clk 0:02:57]}  a6 {[%clk 0:02:55]} 5. Bd3 {[%clk 0:02:55]}  Ngf6 {[%clk 0:02:53]} 6. Re1 {[%clk 0:02:55]}  b5 {[%clk 0:02:34]} 7. c4 {[%clk 0:02:54]}  b4 {[%clk 0:02:30]} 8. Bc2 {[%clk 0:02:50]}  e5 {[%clk 0:02:27]} 9. a3 {[%clk 0:02:49]}  Rb8 {[%clk 0:02:25]} 10. axb4 {[%clk 0:02:49]}  cxb4 {[%clk 0:02:26]} 11. d4 {[%clk 0:02:48]}  Be7 {[%clk 0:02:26]} 12. c5 {[%clk 0:02:38]}  Qc7 {[%clk 0:02:13]} 13. cxd6 {[%clk 0:02:33]}  Bxd6 {[%clk 0:02:14]} 14. dxe5 {[%clk 0:02:30]}  Nxe5 {[%clk 0:02:15]} 15. Ba4+ {[%clk 0:02:29]}  Bd7 {[%clk 0:02:13]} 16. h3 {[%clk 0:02:04]}  a5 {[%clk 0:02:02]} 17. Bxd7+ {[%clk 0:02:03]}  Nfxd7 {[%clk 0:02:02]} 18. Nxe5 {[%clk 0:01:59]}  Bxe5 {[%clk 0:02:03]} 19. Nd2 {[%clk 0:01:59]}  O-O {[%clk 0:01:58]} 20. Nf3 {[%clk 0:02:00]}  Bd6 {[%clk 0:01:53]} 21. Qd5 {[%clk 0:01:46]}  Nc5 {[%clk 0:01:42]} 22. e5 {[%clk 0:01:42]}  Be7 {[%clk 0:01:41]} 23. Bg5 {[%clk 0:01:30]}  Rfd8 {[%clk 0:01:35]} 24. Qc4 {[%clk 0:01:29]}  Qd7 {[%clk 0:01:11]} 25. Bxe7 {[%clk 0:01:21]}  Qxe7 {[%clk 0:01:12]} 26. Rxa5 {[%clk 0:01:21]}  Nd3 {[%clk 0:01:10]} 27. Re2 {[%clk 0:01:18]}  Rbc8 {[%clk 0:01:08]} 28. Qg4 {[%clk 0:01:14]}  h5 {[%clk 0:00:40]} 29. Qf5 {[%clk 0:01:09]}  g6 {[%clk 0:00:29]} 30. Qe4 {[%clk 0:01:09]}  Rc1+ {[%clk 0:00:26]} 31. Kh2 {[%clk 0:01:09]}  Nc5 {[%clk 0:00:20]} 32. Qxb4 {[%clk 0:01:06]}  Rdd1 {[%clk 0:00:16]} 33. Ra8+ {[%clk 0:00:55]}  Kh7 {[%clk 0:00:16]} 34. Qf4 {[%clk 0:00:54]}  Ne6 {[%clk 0:00:15]} 35. Qf6 {[%clk 0:00:41]}  Qxf6 {[%clk 0:00:14]} 36. exf6 {[%clk 0:00:41]}  g5 {[%clk 0:00:15]} 37. Rxe6 {[%clk 0:00:40]}  fxe6 {[%clk 0:00:15]} 38. Nxg5+ {[%clk 0:00:40]}  Kg6 {[%clk 0:00:16]} 39. f7 {[%clk 0:00:10]}  h4 {[%clk 0:00:16]} 40. g3 {[%clk 0:00:10]}  Rh1+ {[%clk 0:00:13]} 41. Kg2 {[%clk 0:00:10]}  Rcg1+ {[%clk 0:00:14]} 42. Kf3 {[%clk 0:00:11]}  hxg3 {[%clk 0:00:13]} 43. f8=Q {[%clk 0:00:11]}  gxf2 {[%clk 0:00:13]} 44. Qg8+ {[%clk 0:00:10]}  Kf5 {[%clk 0:00:14]} 45. Rf8+ {[%clk 0:00:09]}  Ke5 {[%clk 0:00:14]} 46. Qxe6+ {[%clk 0:00:10]}  Kd4 {[%clk 0:00:14]} 47. Rd8+ {[%clk 0:00:09]}  Kc5 {[%clk 0:00:15]} 48. Qd5+ {[%clk 0:00:09]}  Kb4 {[%clk 0:00:16]} 49. Rb8+ {[%clk 0:00:09]}  Ka4 {[%clk 0:00:16]} 50. Qb3+ {[%clk 0:00:09]}  Ka5 {[%clk 0:00:17]} 51. Qb5# {[%clk 0:00:09]} 1-0


[Site "https://www.chess.com"]